lending/lending_fUSD_20250408
["ID","MTS","AMOUNT","RATE_DAILY","PERIOD"]
[357521363,1744116649832,-561.0546625,0.00035616,2]
[357521364,1744116649842,-568.73,0.00035616,2]
[357521365,1744116649851,-500.0,0.00035616,2]
[357521366,1744116649861,-599.59933491,0.00035616,2]
[357521367,1744116649871,-526.10186427,0.00035616,2]
[357521368,1744116649880,-500.0,0.00035616,2]
[357521369,1744116649890,-500.0,0.00035616,2]
[357521370,1744116649900,-561.77255934,0.00035616,2]
[357521371,1744116649909,-500.0,0.00035616,2]
[357521372,1744116649919,-500.0,0.00035616,2]
[357521373,1744116649929,-500.0,0.00035616,2]
[357521374,1744116649939,-500.0,0.00035616,2]
[357521375,1744116649950,-508.91136013,0.00035616,2]
[357521376,1744116649959,-500.0,0.00035616,2]
[357521377,1744116649969,-500.0,0.00035616,2]
[357521378,1744116649979,-500.0,0.00035616,2]
[357521379,1744116649989,-512.93615551,0.00035616,2]
[357521380,1744116649999,-500.0,0.00035616,2]
[357521381,1744116650009,-500.0,0.00035616,2]
[357521382,1744116650019,-500.0,0.00035616,2]
[357521383,1744116650029,-500.0,0.00035616,2]
[357521384,1744116650039,-500.0,0.00035616,2]
[357521385,1744116650049,-500.0,0.00035616,2]
[357521386,1744116650059,-500.0,0.00035616,2]
[357521387,1744116650071,-500.0,0.00035616,2]
[357521388,1744116650088,-500.0,0.00035616,2]
[357521389,1744116650099,-500.0,0.00035616,2]
[357521390,1744116650110,-500.0,0.00035616,2]
[357521391,1744116650120,-500.0,0.00035616,2]
[357521392,1744116650131,-500.0,0.00035616,2]
[357521393,1744116650141,-500.0,0.00035616,2]
[357521394,1744116650151,-500.0,0.00035616,2]
[357521395,1744116650162,-500.0,0.00035616,2]
[357521396,1744116650171,-510.92941792,0.00035616,2]
[357521397,1744116650181,-500.0,0.00035616,2]
[357521398,1744116650191,-500.0,0.00035616,2]
[357521399,1744116650203,-423.44430656,0.00035616,2]
[357521400,1744116650214,-245.63575394,0.00035616,2]
[357521401,1744116650224,-500.0,0.00035616,2]
[357521402,1744116650234,-500.0,0.00035616,2]
[357521403,1744116650244,-524.66312368,0.00035616,2]
[357521404,1744116650255,-500.0,0.00035616,2]
[357521405,1744116650265,-500.0,0.00035616,2]
[357521406,1744116650275,-511.48,0.00035616,2]
[357521407,1744116650285,-500.0,0.00035616,2]
[357521408,1744116650294,-500.0,0.00035616,2]
[357521409,1744116650307,-691.71,0.00035616,2]
[357521410,1744116650316,-500.0,0.00035616,2]
[357521411,1744116650326,-500.0,0.00035616,2]
[357521412,1744116650336,-500.0,0.00035616,2]
[357521413,1744116650346,-500.0,0.00035616,2]
[357521414,1744116650356,-526.52874421,0.00035616,2]
[357521415,1744116650367,-500.0,0.00035616,2]
[357521416,1744116650381,-500.0,0.00035616,2]
[357521417,1744116650391,-500.0,0.00035616,2]
[357521418,1744116650403,-500.0,0.00035616,2]
[357521419,1744116650416,-500.0,0.00035616,2]
[357521420,1744116650429,-500.0,0.00035616,2]
[357521421,1744116650439,-500.0,0.00035616,2]
[357521422,1744116650452,-571.58241195,0.00035616,2]
[357521423,1744116650465,-500.0,0.00035616,2]
[357521424,1744116650475,-500.0,0.00035616,2]
[357521425,1744116650486,-500.0,0.00035616,2]
[357521426,1744116650496,-582.56253083,0.00035616,2]
[357521427,1744116650506,-500.0,0.00035616,2]
[357521428,1744116650521,-500.0,0.00035616,2]
[357521429,1744116650532,-500.0,0.00035616,2]
[357521430,1744116650543,-500.0,0.00035616,2]
[357521431,1744116650553,-500.0,0.00035616,2]
[357521432,1744116650564,-500.0,0.00035616,2]
[357521433,1744116650573,-530.13734353,0.00035616,2]
[357521434,1744116650583,-500.0,0.00035616,2]
[357521435,1744116650594,-500.0,0.00035616,2]
[357521436,1744116650604,-500.0,0.00035616,2]
[357521437,1744116650614,-500.0,0.00035616,2]
[357521438,1744116650624,-500.0,0.00035616,2]
[357521439,1744116650633,-559.6156601,0.00035616,2]
[357521440,1744116650643,-500.0,0.00035616,2]
[357521441,1744116650653,-500.0,0.00035616,2]
[357521442,1744116650663,-500.0,0.00035616,2]
[357521443,1744116650674,-510.43674096,0.00035616,2]
[357521444,1744116650684,-529.45925569,0.00035616,2]
[357521445,1744116650693,-500.0,0.00035616,2]
[357521446,1744116650703,-509.96792668,0.00035616,2]
[357521447,1744116650713,-258.0,0.00035616,2]
[357521448,1744116650723,-500.0,0.00035616,2]
[357521449,1744116650733,-500.0,0.00035616,2]
[357521450,1744116650744,-500.0,0.00035616,2]
[357521451,1744116650754,-508.23726208,0.00035616,2]
[357521452,1744116650764,-500.0,0.00035616,2]
[357521453,1744116650774,-500.0,0.00035616,2]
[357521454,1744116650784,-423.66703795,0.00035616,2]
[357521455,1744116650794,-500.0,0.00035616,2]
[357521456,1744116650804,-500.84591491,0.00035616,2]
[357521457,1744116650814,-565.71504719,0.00035616,2]
[357521458,1744116650824,-500.0,0.00035616,2]
[357521459,1744116650834,-500.0,0.00035616,2]
[357521460,1744116650844,-513.37974401,0.00035616,2]
[357521461,1744116650854,-500.0,0.00035616,2]
[357521462,1744116650864,-500.0,0.00035616,2]
[357521463,1744116650874,-500.0,0.00035616,2]
[357521464,1744116650884,-500.0,0.00035616,2]
[357521465,1744116650894,-500.0,0.00035616,2]
[357521466,1744116650904,-500.0,0.00035616,2]
[357521467,1744116650914,-500.0,0.00035616,2]
[357521468,1744116650924,-587.41,0.00035616,2]
[357521469,1744116650934,-517.87368771,0.00035616,2]
[357521470,1744116650944,-500.0,0.00035616,2]
[357521471,1744116650954,-500.0,0.00035616,2]
[357521472,1744116650964,-500.0,0.00035616,2]
[357521473,1744116650974,-500.0,0.00035616,2]
[357521474,1744116650984,-500.0,0.00035616,2]
[357521475,1744116650995,-517.35112482,0.00035616,2]
[357521476,1744116651005,-500.0,0.00035616,2]
[357521477,1744116651015,-500.0,0.00035616,2]
[357521478,1744116651026,-177.18905373,0.00035616,2]
[357521479,1744116651036,-564.89,0.00035616,2]
[357521480,1744116651045,-528.46864393,0.00035616,2]
[357521481,1744116651056,-541.28613155,0.00035616,2]
[357521482,1744116651066,-500.0,0.00035616,2]
[357521483,1744116651075,-500.0,0.00035616,2]
[357521484,1744116651085,-527.05824422,0.00035616,2]
[357521485,1744116651095,-500.0,0.00035616,2]
[357521486,1744116651106,-500.0,0.00035616,2]
[357521487,1744116651115,-544.00332075,0.00035616,2]
[357521488,1744116651126,-318.27104075,0.00035616,2]
[357521489,1744116651136,-500.0,0.00035616,2]
[357521490,1744116651146,-500.0,0.00035616,2]
[357521491,1744116651161,-496.45307495,0.00035616,2]
[357521492,1744116651175,-500.0,0.00035616,2]
[357521493,1744116651186,-500.0,0.00035616,2]
[357521494,1744116651199,-500.0,0.00035616,2]
[357521495,1744116651209,-556.73966004,0.00035616,2]
[357521496,1744116651221,-500.0,0.00035616,2]
[357521497,1744116651231,-500.0,0.00035616,2]
[357521498,1744116651242,-1198.26,0.00035616,2]
[357521499,1744116651252,-500.0,0.00035616,2]
[357521500,1744116651264,-799.27,0.00035616,2]
[357521501,1744116651276,-500.0,0.00035616,2]
[357521502,1744116651288,-509.82008874,0.00035616,2]
[357521503,1744116651300,-554.1274868,0.00035616,2]
[357521504,1744116651311,-500.0,0.00035616,2]
[357521505,1744116651322,-500.0,0.00035616,2]
[357521506,1744116651332,-500.0,0.00035616,2]
[357521507,1744116651342,-510.0270029,0.00035616,2]
[357521508,1744116651352,-500.0,0.00035616,2]
[357521509,1744116651364,-500.0,0.00035616,2]
[357521510,1744116651374,-500.0,0.00035616,2]
[357521511,1744116651385,-500.0,0.00035616,2]
[357521512,1744116651395,-500.0,0.00035616,2]
[357521513,1744116651406,-500.0,0.00035616,2]
[357521514,1744116651416,-500.0,0.00035616,2]
[357521515,1744116651426,-500.0,0.00035616,2]
[357521516,1744116651436,-1109.12,0.00035616,2]
[357521517,1744116651447,-1214.76,0.00035616,2]
[357521518,1744116651457,-500.0,0.00035616,2]
[357521519,1744116651467,-500.0,0.00035616,2]
[357521520,1744116651477,-514.14676859,0.00035616,2]
[357521521,1744116651487,-500.0,0.00035616,2]
[357521522,1744116651497,-536.78,0.00035616,2]
[357521523,1744116651508,-500.0,0.00035616,2]
[357521524,1744116651521,-500.0,0.00035616,2]
[357521525,1744116651531,-500.0,0.00035616,2]
[357521526,1744116651540,-1230.39,0.00035616,2]
[357521527,1744116651551,-514.41449067,0.00035616,2]
[357521528,1744116651560,-676.97,0.00035616,2]
[357521529,1744116651570,-1044.36,0.00035616,2]
[357521530,1744116651580,-500.0,0.00035616,2]
[357521531,1744116651591,-500.0,0.00035616,2]
[357521532,1744116651602,-500.0,0.00035616,2]
[357521533,1744116651612,-511.99598148,0.00035616,2]
[357521534,1744116651621,-500.0,0.00035616,2]
[357521535,1744116651631,-517.82571575,0.00035616,2]
[357521536,1744116651641,-500.0,0.00035616,2]
[357521537,1744116651652,-515.90717034,0.00035616,2]
[357521538,1744116651661,-1139.55,0.00035616,2]
[357521539,1744116651671,-509.86810095,0.00035616,2]
[357521540,1744116651681,-516.27993677,0.00035616,2]
[357521541,1744116651692,-555.66,0.00035616,2]
[357521542,1744116651702,-1199.23,0.00035616,2]
[357521543,1744116651713,-500.0,0.00035616,2]
[357521544,1744116651723,-373.97786215,0.00035616,2]
[357521545,1744116651732,-513.6285931,0.00035616,2]
[357521546,1744116651742,-504.50906911,0.00035616,2]
[357521547,1744116651752,-500.0,0.00035616,2]
[357521548,1744116651762,-500.0,0.00035616,2]
[357521549,1744116651772,-500.0,0.00035616,2]
[357521550,1744116651782,-500.0,0.00035616,2]
[357521551,1744116651792,-500.0,0.00035616,2]
[357521552,1744116651802,-500.0,0.00035616,2]
[357521553,1744116651812,-500.0,0.00035616,2]
[357521554,1744116651822,-537.84,0.00035616,2]
[357521555,1744116651832,-507.63676285,0.00035616,2]
[357521556,1744116651842,-500.0,0.00035616,2]
[357521557,1744116651852,-500.0,0.00035616,2]
[357521558,1744116651862,-505.1625613,0.00035616,2]
[357521559,1744116651872,-500.0,0.00035616,2]
[357521560,1744116651882,-500.0,0.00035616,2]
[357521561,1744116651891,-500.0,0.00035616,2]
[357521562,1744116651901,-500.0,0.00035616,2]
[357521563,1744116651911,-1816.3,0.00035616,2]
[357521564,1744116651921,-1377.51,0.00035616,2]
[357521565,1744116651931,-508.96062106,0.00035616,2]
[357521566,1744116651941,-500.0,0.00035616,2]
[357521567,1744116651952,-500.0,0.00035616,2]
[357521568,1744116651962,-500.0,0.00035616,2]
[357521569,1744116651973,-500.0,0.00035616,2]
[357521570,1744116651983,-500.0,0.00035616,2]
[357521571,1744116651994,-992.96,0.00035616,2]
[357521572,1744116652005,-500.0,0.00035616,2]
[357521573,1744116652016,-500.0,0.00035616,2]
[357521574,1744116652026,-478.9889563,0.00035616,2]
[357521575,1744116652037,-500.0,0.00035616,2]
[357521576,1744116652048,-508.22912938,0.00035616,2]
[357521577,1744116652059,-638.55475677,0.00035616,2]
[357521578,1744116652070,-683.25,0.00035616,2]
[357521579,1744116652080,-500.0,0.00035616,2]
[357521580,1744116652373,-503.39572609,0.00035616,2]
[357521581,1744116652383,-500.0,0.00035616,2]
[357521582,1744116652393,-224.5425892,0.00035616,2]
[357521583,1744116652402,-509.15358036,0.00035616,2]
[357521584,1744116652412,-500.0,0.00035616,2]
[357521585,1744116652421,-505.46777638,0.00035616,2]
[357521586,1744116652431,-500.0,0.00035616,2]
[357521587,1744116652440,-500.0,0.00035616,2]
[357521588,1744116652450,-502.09423579,0.00035616,2]
[357521589,1744116652460,-500.0,0.00035616,2]
[357521590,1744116652471,-576.76,0.00035616,2]
[357521591,1744116652481,-527.09,0.00035616,2]
[357521592,1744116652491,-500.0,0.00035616,2]
[357521593,1744116652500,-227.97902103,0.00035616,2]
[357521594,1744116652510,-512.19694888,0.00035616,2]
[357521595,1744116652522,-500.0,0.00035616,2]
[357521596,1744116652532,-500.87053085,0.00035616,2]
[357521597,1744116652541,-2000.0,0.00035616,2]
[357521598,1744116652551,-507.39518296,0.00035616,2]
[357521599,1744116652561,-500.0,0.00035616,2]
[357521600,1744116652571,-794.13,0.00035616,2]
[357521601,1744116652580,-500.0,0.00035616,2]
[357521602,1744116652590,-500.0,0.00035616,2]
[357521603,1744116652600,-500.0,0.00035616,2]
[357521604,1744116652610,-1639.71,0.00035616,2]
[357521605,1744116652620,-1639.71,0.00035616,2]
[357521606,1744116652629,-1639.71,0.00035616,2]
[357521607,1744116652639,-1639.71,0.00035616,2]
[357521608,1744116652649,-500.0,0.00035616,2]
[357521609,1744116652658,-1639.71,0.00035616,2]
[357521610,1744116652668,-1639.71,0.00035616,2]
[357521611,1744116652677,-1639.71,0.00035616,2]
[357521612,1744116652686,-500.0,0.00035616,2]
[357521613,1744116652695,-1639.71,0.00035616,2]
[357521614,1744116652705,-500.0,0.00035616,2]
[357521615,1744116652716,-1639.71,0.00035616,2]
[357521616,1744116652725,-1639.71,0.00035616,2]
[357521617,1744116652735,-1639.71,0.00035616,2]
[357521618,1744116652744,-1639.71,0.00035616,2]
[357521619,1744116652755,-500.0,0.00035616,2]
[357521620,1744116652765,-500.0,0.00035616,2]
[357521621,1744116652775,-500.0,0.00035616,2]
[357521622,1744116652784,-500.0,0.00035616,2]
[357521623,1744116652795,-500.0,0.00035616,2]
[357521624,1744116652804,-510.29804469,0.00035616,2]
[357521625,1744116652814,-837.48,0.00035616,2]
[357521626,1744116652824,-500.0,0.00035616,2]
[357521627,1744116652834,-500.0,0.00035616,2]
[357521628,1744116652844,-500.0,0.00035616,2]
[357521629,1744116652854,-500.0,0.00035616,2]
[357521630,1744116652864,-500.0,0.00035616,2]
[357521631,1744116652874,-500.0,0.00035616,2]
[357521632,1744116652884,-500.0,0.00035616,2]
[357521633,1744116652894,-500.0,0.00035616,2]
[357521634,1744116652903,-500.0,0.00035616,2]
[357521635,1744116652913,-500.0,0.00035616,2]
[357521636,1744116652922,-512.51433767,0.00035616,2]
[357521637,1744116652932,-500.0,0.00035616,2]
[357521638,1744116652942,-500.0,0.00035616,2]
[357521639,1744116652952,-500.0,0.00035616,2]
[357521640,1744116652962,-500.0,0.00035616,2]
[357521641,1744116652972,-500.0,0.00035616,2]
[357521642,1744116652982,-500.0,0.00035616,2]
[357521643,1744116652992,-500.0,0.00035616,2]
[357521644,1744116653001,-500.0,0.00035616,2]
[357521645,1744116653012,-327.49817406,0.00035616,2]
[357521646,1744116653021,-501.84952815,0.00035616,2]
[357521647,1744116653031,-500.0,0.00035616,2]
[357521648,1744116653040,-500.0,0.00035616,2]
[357521649,1744116653050,-500.0,0.00035616,2]
[357521650,1744116653060,-500.0,0.00035616,2]
[357521651,1744116653070,-500.0,0.00035616,2]
[357521652,1744116653079,-709.39,0.00035616,2]
[357521653,1744116653089,-500.0,0.00035616,2]
[357521654,1744116653099,-500.0,0.00035616,120]
[357521655,1744116653109,-562.28671781,0.00035616,2]
[357521656,1744116653119,-500.0,0.00035616,2]
[357521657,1744116653129,-519.19,0.00035616,2]
[357521658,1744116653139,-500.0,0.00035616,2]
[357521659,1744116653149,-500.0,0.00035616,2]
[357521660,1744116653161,-505.08079358,0.00035616,2]
[357521661,1744116653172,-759.98,0.00035616,2]
[357521662,1744116653184,-500.0,0.00035616,2]
[357521663,1744116653195,-500.0,0.00035616,2]
[357521664,1744116653206,-500.72,0.00035616,2]
[357521665,1744116653217,-173.68303858,0.00035616,2]
[357521666,1744116653227,-500.0,0.00035616,2]
[357521667,1744116653237,-500.0,0.00035616,2]
[357521668,1744116653247,-500.0,0.00035616,2]
[357521669,1744116653256,-500.0,0.00035616,2]
[357521670,1744116653266,-500.0,0.00035616,2]
[357521671,1744116653276,-744.15,0.00035616,2]
[357521672,1744116653285,-500.0,0.00035616,2]
[357521673,1744116653295,-607.62,0.00035616,2]
[357521674,1744116653304,-500.0,0.00035616,2]
[357521675,1744116653314,-1039.68,0.00035616,2]
[357521676,1744116653323,-500.0,0.00035616,2]
[357521677,1744116653332,-513.95437309,0.00035616,2]
[357521678,1744116653342,-646.76,0.00035616,2]
[357521679,1744116653351,-500.0,0.00035616,2]
[357521680,1744116653361,-505.34262259,0.00035616,2]
[357521681,1744116653370,-500.0,0.00035616,2]
[357521682,1744116653379,-500.0,0.00035616,2]
[357521683,1744116653389,-505.71821721,0.00035616,2]
[357521684,1744116653398,-500.0,0.00035616,2]
[357521685,1744116653408,-500.0,0.00035616,2]
[357521686,1744116653417,-500.0,0.00035616,2]
[357521687,1744116653426,-500.0,0.00035616,2]
[357521688,1744116653435,-500.46,0.00035616,2]
[357521689,1744116653445,-1475.07,0.00035616,2]
[357521690,1744116653454,-500.0,0.00035616,2]
[357521691,1744116653464,-1051.79,0.00035616,2]
[357521692,1744116653474,-780.9,0.00035616,2]
[357521693,1744116653484,-500.0,0.00035616,2]
[357521694,1744116653493,-500.0,0.00035616,2]
[357521695,1744116653502,-500.0,0.00035616,2]
[357521696,1744116653513,-500.0,0.00035616,2]
[357521697,1744116653523,-500.0,0.00035616,2]
[357521698,1744116653531,-500.0,0.00035616,2]
[357521699,1744116653541,-506.96363673,0.00035616,2]
[357521700,1744116653550,-521.36637843,0.00035616,2]
[357521701,1744116653560,-522.37,0.00035616,2]
[357521702,1744116653570,-500.0,0.00035616,2]
[357521703,1744116653579,-502.4628527,0.00035616,2]
[357521704,1744116653588,-504.29016463,0.00035616,2]
[357521705,1744116653598,-500.0,0.00035616,2]
[357521706,1744116653607,-500.0,0.00035616,2]
[357521707,1744116653616,-500.0,0.00035616,2]
[357521708,1744116653626,-500.0,0.00035616,2]
[357521709,1744116653635,-268.65453893,0.00035616,2]
[357521710,1744116653644,-504.38318325,0.00035616,2]
[357521711,1744116653653,-500.0,0.00035616,2]
[357521712,1744116653667,-504.69785499,0.00035616,2]
[357521713,1744116653677,-500.0,0.00035616,2]
[357521714,1744116653687,-652.38,0.00035616,2]
[357521715,1744116653699,-500.0,0.00035616,2]
[357521716,1744116653709,-500.0,0.00035616,2]
[357521717,1744116653727,-500.0,0.00035616,2]
[357521718,1744116653738,-500.0,0.00035616,2]
[357521719,1744116653750,-502.17157583,0.00035616,2]
[357521720,1744116653761,-500.0,0.00035616,2]
[357521721,1744116653772,-500.0,0.00035616,2]
[357521722,1744116653783,-535.68332083,0.00035616,2]
[357521723,1744116653795,-500.0,0.00035616,2]
[357521724,1744116653807,-500.0,0.00035616,2]
[357521725,1744116653818,-500.0,0.00035616,2]
[357521726,1744116653830,-769.26,0.00035616,2]
[357521727,1744116653841,-500.0,0.00035616,2]
[357521728,1744116653853,-500.0,0.00035616,2]
[357521729,1744116653865,-500.0,0.00035616,2]
[357521730,1744116653876,-500.0,0.00035616,2]
[357521731,1744116653886,-610.89,0.00035616,2]
[357521732,1744116653898,-604.14,0.00035616,2]
[357521733,1744116653909,-500.0,0.00035616,2]
[357521734,1744116653920,-500.0,0.00035616,2]
[357521735,1744116653931,-865.69,0.00035616,2]
[357521736,1744116653942,-500.0,0.00035616,2]
[357521737,1744116653953,-500.0,0.00035616,2]
[357521738,1744116653967,-500.0,0.00035616,2]
[357521739,1744116653980,-553.2,0.00035616,2]
[357521740,1744116653991,-551.71541612,0.00035616,2]
[357521741,1744116654001,-507.58,0.00035616,2]
[357521742,1744116654011,-635.14,0.00035616,2]
[357521743,1744116654021,-500.0,0.00035616,2]
[357521744,1744116654031,-500.0,0.00035616,2]
[357521745,1744116654042,-512.8,0.00035616,2]
[357521746,1744116654052,-650.54,0.00035616,2]
[357521747,1744116654063,-500.0,0.00035616,2]
[357521748,1744116654073,-386.05333664,0.00035616,2]
[357521749,1744116654083,-600.06,0.00035616,2]
[357521750,1744116654092,-506.27,0.00035616,2]
[357521751,1744116654102,-1259.42,0.00035616,2]
[357521752,1744116654112,-500.0,0.00035616,2]
[357521753,1744116654122,-507.14,0.00035616,2]
[357521754,1744116654131,-996.97,0.00035616,2]
[357521755,1744116654141,-500.0,0.00035616,2]
[357521756,1744116654151,-500.0,0.00035616,2]
[357521757,1744116654161,-500.0,0.00035616,2]
[357521758,1744116654171,-500.0,0.00035616,2]
[357521759,1744116654181,-500.0,0.00035616,2]
[357521760,1744116654191,-500.0,0.00035616,2]
[357521761,1744116654201,-500.0,0.00035616,2]
[357521762,1744116654211,-500.0,0.00035616,2]
[357521763,1744116654226,-500.0,0.00035616,2]
[357521764,1744116654236,-500.0,0.00035616,2]
[357521765,1744116654246,-516.93321966,0.00035616,2]
[357521766,1744116654256,-507.83,0.00035616,2]
[357521767,1744116654265,-500.0,0.00035616,2]
[357521768,1744116654276,-500.0,0.00035616,2]
[357521769,1744116654285,-697.64,0.00035616,2]
[357521770,1744116654295,-515.14,0.00035616,2]
[357521771,1744116654305,-500.0,0.00035616,2]
[357521772,1744116654315,-507.32,0.00035616,2]
[357521773,1744116654324,-500.0,0.00035616,2]
[357521774,1744116654334,-633.57,0.00035616,2]
[357521775,1744116654343,-510.24137384,0.00035616,2]
[357521776,1744116654353,-526.91859791,0.00035616,2]
[357521777,1744116654364,-500.0,0.00035616,2]
[357521778,1744116654374,-500.0,0.00035616,2]
[357521779,1744116654384,-517.15819875,0.00035616,2]
[357521780,1744116654393,-514.8000961,0.00035616,2]
[357521781,1744116654403,-658.46,0.00035616,2]
[357521782,1744116654414,-500.0,0.00035616,2]
[357521783,1744116654423,-529.14725579,0.00035616,2]
[357521784,1744116654433,-500.0,0.00035616,2]
[357521785,1744116654443,-500.0,0.00035616,2]
[357521786,1744116654452,-1113.47,0.00035616,2]
[357521787,1744116654463,-572.34,0.00035616,2]
[357521788,1744116654478,-500.0,0.00035616,2]
[357521789,1744116654488,-534.12095553,0.00035616,2]
[357521790,1744116654497,-272.36988593,0.00035616,2]
[357521791,1744116654507,-500.0,0.00035616,2]
[357521792,1744116654518,-1020.31,0.00035616,2]
[357521793,1744116654531,-512.22756471,0.00035616,2]
[357521794,1744116654540,-500.0,0.00035616,2]
[357521795,1744116654550,-975.2,0.00035616,2]
[357521796,1744116654559,-814.47,0.00035616,2]
[357521797,1744116654570,-517.40155986,0.00035616,2]
[357521798,1744116654580,-780.45,0.00035616,2]
[357521799,1744116654590,-512.07524319,0.00035616,2]
[357521800,1744116654603,-500.0,0.00035616,2]
[357521801,1744116654614,-500.0,0.00035616,2]
[357521802,1744116654624,-500.0,0.00035616,2]
[357521803,1744116654633,-807.62,0.00035616,2]
[357521804,1744116654643,-517.7616432,0.00035616,2]
[357521805,1744116654652,-2436.51,0.00035616,2]
[357521806,1744116654661,-500.0,0.00035616,2]
[357521807,1744116654671,-500.0,0.00035616,2]
[357521808,1744116654680,-500.0,0.00035616,2]
[357521809,1744116654690,-578.32,0.00035616,2]
[357521810,1744116654700,-500.0,0.00035616,2]
[357521811,1744116654709,-500.0,0.00035616,2]
[357521812,1744116654722,-500.0,0.00035616,2]
[357521813,1744116654731,-519.40124415,0.00035616,2]
[357521814,1744116654740,-505.88683209,0.00035616,2]
[357521815,1744116654749,-553.33719183,0.00035616,2]
[357521816,1744116654871,-732.07,0.00035616,2]
[357521817,1744116654881,-500.0,0.00035616,2]
[357521818,1744116654891,-500.0,0.00035616,2]
[357521819,1744116654901,-500.0,0.00035616,2]
[357521820,1744116654911,-500.0,0.00035616,2]
[357521821,1744116654921,-505.08063511,0.00035616,2]
[357521822,1744116654930,-674.81,0.00035616,2]
[357521823,1744116654940,-510.53169909,0.00035616,2]
[357521824,1744116654950,-500.0,0.00035616,2]
[357521825,1744116654960,-500.0,0.00035616,2]
[357521826,1744116654972,-3279.46,0.00035616,2]
[357521827,1744116654982,-597.36,0.00035616,2]
[357521828,1744116654992,-565.37,0.00035616,2]
[357521829,1744116655002,-625.38,0.00035616,2]
[357521830,1744116655012,-500.0,0.00035616,2]
[357521831,1744116655021,-500.0,0.00035616,2]
[357521832,1744116655030,-500.0,0.00035616,2]
[357521833,1744116655040,-582.81,0.00035616,2]
[357521834,1744116655050,-1190.08,0.00035616,2]
[357521835,1744116655059,-192.84332681,0.00035616,2]
[357521836,1744116655069,-500.0,0.00035616,2]
[357521837,1744116655079,-500.0,0.00035616,2]
[357521838,1744116655089,-500.0,0.00035616,2]
[357521839,1744116655098,-501.21201528,0.00035616,2]
[357521840,1744116655107,-500.0,0.00035616,2]
[357521841,1744116655117,-509.95914876,0.00035616,2]
[357521842,1744116655127,-500.0,0.00035616,2]
[357521843,1744116655136,-500.0,0.00035616,2]
[357521844,1744116655147,-818.49,0.00035616,2]
[357521845,1744116655156,-633.24,0.00035616,2]
[357521846,1744116655166,-500.0,0.00035616,2]
[357521847,1744116655176,-815.69,0.00035616,2]
[357521848,1744116655186,-500.0,0.00035616,2]
[357521849,1744116655195,-500.0,0.00035616,2]
[357521850,1744116655204,-737.37,0.00035616,2]
[357521851,1744116655214,-500.0,0.00035616,2]
[357521852,1744116655225,-504.14404313,0.00035616,2]
[357521853,1744116655235,-500.0,0.00035616,2]
[357521854,1744116655244,-500.0,0.00035616,2]
[357521855,1744116655254,-500.0,0.00035616,2]
[357521856,1744116655263,-500.0,0.00035616,2]
[357521857,1744116655272,-524.73360411,0.00035616,2]
[357521858,1744116655282,-526.46207926,0.00035616,2]
[357521859,1744116655292,-501.26981939,0.00035616,2]
[357521860,1744116655302,-1574.4,0.00035616,2]
[357521861,1744116655312,-993.68,0.00035616,2]
[357521862,1744116655322,-505.88043722,0.00035616,2]